bitfinex-derivatives/quotes_SOLF0:USTF0_20250409
["timestamp","ask_amount","ask_price","bid_price","bid_amount"]
[1744173529946,38.90984146,105.96,105.91,0.06688845]
[1744173530151,38.90984146,105.96,105.95,9.4467]
[1744173530359,38.90984146,105.96,105.92,51.04243107]
[1744173530651,157.70017777,105.98,105.97,9.4449]
[1744173530652,2.728e-05,105.98,105.97,9.4449]
[1744173530850,370.0063437,105.99,105.97,59.84]
[1744173531052,350.1448437,105.99,105.98,50.53068377]
[1744173531253,350.1448437,105.99,105.97,0.06393785]
[1744173531450,350.1448437,105.99,105.8,50.36]
[1744173531655,50.07674732,105.98,105.94,9.4468]
[1744173531849,358.95754421,105.99,105.91,50.53068377]
[1744173532044,349.86154421,105.99,105.94,50.53068377]
[1744173532755,0.06139933,105.98,105.97,9.4449]
[1744173532955,9.933e-05,105.98,105.97,9.4449]
[1744173534048,317.95554354,105.99,105.96,50.53068377]
[1744173534250,1.88714851,105.98,105.86,50.53068377]
[1744173534445,317.95554354,105.99,105.89,50.53068377]
[1744173534645,326.93004354,105.99,105.9,52.06]
[1744173534849,336.37314354,105.99,105.9,52.06]
[1744173535050,4.4344,105.98,105.91,9.4494]
[1744173535347,0.06890641,105.96,105.93,0.06599135]
[1744173536148,0.06890641,105.96,105.94,52.06]
[1744173536456,317.95554354,105.99,105.95,50.53068377]
[1744173536650,28.65,106.16,105.96,499.04]
[1744173536851,50.53068377,106.08,105.96,50.53068377]
[1744173537050,50.53068377,106.05,105.91,52.04]
[1744173537249,9.4402,106.03,105.95,9.446]
[1744173537455,9.1387,106.12,106.02,50.53068377]
[1744173537757,9.1387,106.12,106.02,102.57068377]
[1744173537954,50.53068377,106.11,106.06,0.06408585]
[1744173538259,50.53068377,106.08,105.96,52.04]
[1744173538458,555.598,106.07,105.95,50.53068377]
[1744173538654,52.04,106.06,106.01,0.06249826]
[1744173539059,9.4383,106.05,106.01,0.06249826]
[1744173539558,9.4402,106.03,105.96,9.4452]
[1744173539759,8.803,106.04,105.96,9.4452]
[1744173539973,8.803,106.04,105.93,52.04]
[1744173540152,50.53068377,106.03,105.9,50.53068377]
[1744173540359,50.53068377,106.0,105.87,50.53068377]
[1744173540559,9.4473,105.95,105.84,601.27068377]
[1744173540861,56.4459,105.94,105.84,102.55068377]
[1744173541159,52.02,105.93,105.88,9.4523]
[1744173541359,52.02,105.93,105.84,102.55068377]
[1744173541559,4.48802023,105.92,105.84,102.55068377]
[1744173541950,0.06203964,105.89,105.87,0.07014995]
[1744173542153,4.4259,105.94,105.87,0.07014995]
[1744173542353,4.4259,105.94,105.87,50.60083372]
[1744173542653,4.4259,105.94,105.87,50.53068377]
[1744173542861,4.4259,105.94,105.89,9.4515]
[1744173543259,0.07069647,105.93,105.9,0.06045565]
[1744173544355,0.07069647,105.93,105.9,50.59113942]
[1744173544557,0.07069647,105.93,105.9,60.04193942]
[1744173544751,0.07069647,105.93,105.91,401.7899596]
[1744173544961,9.4455,105.97,105.91,401.7899596]
[1744173544962,9.0052,105.98,105.91,401.7899596]
[1744173545271,9.0052,105.98,105.92,100.4474899]
[1744173545656,1.64305949,106.01,105.93,50.53068377]
[1744173545864,9.126,106.01,105.94,1147.88859849]
[1744173546064,9.4425,106.0,105.96,0.06034982]
[1744173546356,9.126,106.01,105.96,0.06034982]
[1744173546563,52.02,106.0,105.96,0.06034982]
[1744173546758,56.5998,106.0,105.96,0.06034982]
[1744173546958,4.5798,106.0,105.96,0.06034982]
[1744173547264,9.438,106.05,106.0,9.4419]
[1744173547473,23.1293,106.05,105.98,533.85219892]
[1744173547767,9.1115,106.05,106.02,9.4398]
[1744173547970,9.1115,106.05,106.01,50.53068377]
[1744173548466,9.1115,106.05,106.02,0.06716593]
[1744173548862,61.1315,106.05,106.02,0.06716593]
[1744173549063,48.60183311,106.05,105.99,136.84329899]
[1744173549663,48.60183311,106.05,105.95,96.66430303]
[1744173550269,99.13251688,106.05,105.95,96.66430303]
[1744173550570,9.4456,105.97,105.95,96.66430303]
[1744173550758,61.4656,105.97,105.95,96.66430303]
[1744173551274,52.02,105.97,105.94,362.49113637]
[1744173551862,9.4467,105.95,105.94,355.3384634]
[1744173552164,9.4467,105.95,105.94,59.0403972]
[1744173552467,18.8867,105.95,105.94,25.6285972]
[1744173553964,18.8867,105.95,105.94,0.06272703]
[1744173554166,9.4485,105.93,105.92,100.4474899]
[1744173554369,560.0685,105.93,105.92,100.4474899]
[1744173555261,560.06,105.93,105.83,4.3586]
[1744173555455,50.53068377,105.91,105.83,4.3586]
[1744173555661,50.53068377,105.91,105.81,4.3636]
[1744173556167,50.53068377,105.91,105.82,9.4577]
[1744173556367,9.4552,105.86,105.82,9.4577]
[1744173556564,61.4752,105.86,105.85,0.06229035]
[1744173556971,9.4561,105.85,105.81,13.8223]
[1744173557267,52.02,105.86,105.84,0.06775866]
[1744173557473,9.4556,105.85,105.84,5.866e-05]
[1744173557769,601.25068377,105.86,105.78,4.4365]
[1744173558166,601.25068377,105.86,105.77,4.4744]
[1744173558368,9.4604,105.8,105.77,4.4744]
[1744173558670,52.04,105.81,105.8,0.06730875]
[1744173558863,9.4642,105.76,105.71,9.4676]
[1744173559064,50.53068377,105.82,105.7,50.53068377]
[1744173559065,52.04,105.78,105.7,50.53068377]
[1744173559270,52.04,105.78,105.69,60.8712]
[1744173559573,9.4652,105.75,105.7,9.4687]
[1744173559868,52.04,105.78,105.71,0.06462951]
[1744173560168,52.04,105.85,105.74,50.53068377]
[1744173560376,511.39925473,105.86,105.79,50.53068377]
[1744173560377,12.69925473,105.86,105.79,50.53068377]
[1744173560559,9.455,105.86,105.81,9.4583]
[1744173560760,52.04,105.91,105.8,4.3568]
[1744173560972,52.04,105.91,105.8,54.88748377]
[1744173561269,52.04,105.91,105.84,0.0724828]
[1744173561270,0.07200595,105.87,105.84,0.0724828]
[1744173561470,149.5997262,105.85,105.8,54.88748377]
[1744173561667,159.0558262,105.85,105.84,0.06140352]
[1744173561869,0.06505978,105.84,105.8,4.3568]
[1744173562070,0.06505978,105.84,105.83,0.0635107]
[1744173562675,9.52155978,105.84,105.83,0.0635107]
[1744173562869,0.06505978,105.84,105.83,0.0635107]
[1744173563374,0.06505978,105.84,105.75,55.12608377]
[1744173563568,52.06,105.83,105.75,55.12608377]
[1744173563773,9.4597,105.81,105.76,9.4629]
[1744173564071,53.06,105.82,105.75,55.12608377]
[1744173564375,154.72824785,105.77,105.75,55.12608377]
[1744173564768,154.72824785,105.77,105.75,4.66582295]
[1744173564975,154.79083003,105.77,105.75,4.66582295]
[1744173565178,9.4636,105.76,105.75,0.07042295]
[1744173565374,154.79083003,105.77,105.69,50.53068377]
[1744173565573,154.72824785,105.77,105.69,103.59068377]
[1744173565790,154.72824785,105.77,105.71,50.53068377]
[1744173566075,154.72824785,105.77,105.73,50.53068377]
[1744173566275,616.1955291,105.76,105.75,9.4645]
[1744173566480,610.41505999,105.76,105.75,9.4645]
[1744173566669,2.965e-05,105.77,105.75,59.99068377]
[1744173566869,9.4579,105.83,105.79,9.4602]
[1744173567081,53.06,105.84,105.76,35.50883076]
[1744173567378,53.06,105.84,105.76,0.51712273]
[1744173567575,9.4582,105.83,105.76,0.51712273]
[1744173567878,12.87123399,105.78,105.77,62.0]
[1744173568076,5.67003399,105.78,105.77,71.4627]
[1744173569272,3.399e-05,105.78,105.77,184.53338377]
[1744173569474,3.399e-05,105.78,105.77,175.07338377]
[1744173569680,3.399e-05,105.78,105.76,10.05140877]
[1744173569869,0.06485884,105.79,105.76,0.58780877]
[1744173570280,9.4625,105.78,105.76,0.58780877]
[1744173570487,0.06485884,105.79,105.76,0.58780877]
[1744173571175,9.4644,105.76,105.72,9.4669]
[1744173571879,552.28,105.78,105.58,1047.2]
[1744173572083,4.7442,105.75,105.63,2.6848]
[1744173572279,4.7442,105.75,105.68,50.53068377]
[1744173572473,0.06002551,105.69,105.68,60.00148377]
[1744173572773,0.06486115,105.7,105.68,112.53068377]
[1744173572971,0.06486115,105.7,105.69,9.4692]
[1744173573176,53.08,105.74,105.65,50.53068377]
[1744173573481,0.06959123,105.7,105.68,0.06888318]
[1744173574290,53.14959123,105.7,105.68,0.06888318]
[1744173574579,53.14959123,105.7,105.61,0.5827]
[1744173574786,103.61068377,105.7,105.6,98.48750121]
[1744173574977,9.4731,105.66,105.62,9.4761]
[1744173575173,103.61068377,105.7,105.6,98.48750121]
[1744173575780,0.06349328,105.66,105.64,0.07075475]
[1744173576478,53.1,105.65,105.59,1.89411876]
[1744173576679,53.1,105.65,105.56,50.53068377]
[1744173577383,9.4759,105.63,105.59,9.4782]
[1744173577680,0.0603366,105.62,105.5,50.53068377]
[1744173577881,53.1,105.61,105.51,0.5896]
[1744173578184,9.4782,105.6,105.56,9.4811]
[1744173578685,4.6087,105.64,105.59,9.4782]
[1744173578884,4.6087,105.64,105.56,103.63068377]
[1744173579073,4.6087,105.64,105.56,53.1]
[1744173579271,0.06411166,105.61,105.59,0.06861422]
[1744173579989,499.74,105.6,105.51,98.48750121]
[1744173580193,4.3743,105.59,105.51,98.48750121]
[1744173580487,54.98,105.58,105.51,98.48750121]
[1744173580692,54.98,105.58,105.49,87.13970063]
[1744173580693,50.53068377,105.55,105.49,74.01145365]
[1744173580981,50.53068377,105.52,105.48,349.80071416]
[1744173581175,50.53068377,105.49,105.45,369.32812954]
[1744173581380,554.72,105.51,105.42,61.96395941]
[1744173581580,50.53068377,105.48,105.42,61.96395941]
[1744173581780,50.53068377,105.45,105.42,61.96395941]
[1744173581984,50.53068377,105.45,105.44,0.0672803]
[1744173582187,60.02218377,105.45,105.44,0.0672803]
[1744173582389,60.08414253,105.45,105.44,0.0672803]
[1744173582894,9.55345876,105.45,105.44,0.0672803]
[1744173583687,0.06195876,105.45,105.44,0.0672803]
[1744173584386,9.55345876,105.45,105.44,0.0672803]
[1744173584593,0.06195876,105.45,105.44,0.0672803]
[1744173585485,9.55345876,105.45,105.44,0.0672803]
[1744173585787,0.06195876,105.45,105.44,0.0672803]
[1744173586608,9.55345876,105.45,105.44,0.0672803]
[1744173588387,9.55345876,105.45,105.44,8.03e-05]
[1744173588585,9.4944,105.42,105.36,9.4989]
[1744173588785,50.53068377,105.48,105.35,58.8775]
[1744173588786,55.06,105.43,105.35,58.8775]
[1744173588985,55.06,105.43,105.36,9.4993]
[1744173589493,9.4952,105.41,105.37,9.4986]
[1744173589690,0.06095666,105.41,105.38,0.06694456]
[1744173590489,50.53068377,105.48,105.38,0.06694456]
[1744173590490,55.06,105.46,105.38,0.06694456]
[1744173590691,55.06,105.46,105.36,55.06]
[1744173591392,55.06,105.46,105.37,62.0]
[1744173591779,0.06881497,105.42,105.4,0.06866741]
[1744173592185,0.06881497,105.42,105.4,9.56386741]
[1744173592990,0.06881497,105.42,105.4,0.06866741]
[1744173594893,9.4951,105.41,105.4,0.06866741]
[1744173595687,60.02578377,105.41,105.4,0.06866741]
[1744173596191,9.4951,105.41,105.4,0.06866741]
[1744173597292,60.02578377,105.41,105.4,0.06866741]
[1744173597493,60.02578377,105.41,105.4,6.741e-05]
[1744173598093,9.4951,105.41,105.4,6.741e-05]
[1744173598489,55.16881497,105.42,105.4,6.741e-05]
[1744173599097,9.4951,105.41,105.4,6.741e-05]
[1744173599500,60.02578377,105.41,105.4,6.741e-05]
[1744173600000,9.4951,105.41,105.4,6.741e-05]
[1744173602194,9.4996,105.36,105.35,0.5384]
[1744173602598,53.36,105.38,105.31,69.4397]
[1744173602797,53.36,105.38,105.3,4.4251]
[1744173602996,50.53068377,105.37,105.3,4.4251]
[1744173603198,9.5034,105.32,105.3,4.4251]
[1744173603396,53.38,105.34,105.3,4.4251]
[1744173603592,53.38,105.34,105.32,0.06179351]
[1744173603801,53.38,105.34,105.25,9.2278]
[1744173603802,50.53068377,105.33,105.25,9.2278]
[1744173604297,9.5055,105.3,105.26,9.5081]
[1744173604896,0.06976031,105.29,105.27,0.04995755]
[1744173605097,9.57576031,105.29,105.27,0.04995755]
[1744173605298,0.06976031,105.29,105.27,0.04995755]
[1744173605796,0.06976031,105.29,105.22,54.93258377]
[1744173605797,861.33318212,105.28,105.02,28.65]
[1744173606110,9.5109,105.24,105.15,50.53068377]
[1744173606292,58.1197,105.27,105.18,9.5153]
[1744173606598,58.1197,105.27,105.16,55.27838377]
[1744173606798,9.5092,105.26,105.16,55.27838377]
[1744173607006,58.1197,105.27,105.16,55.27838377]
[1744173607007,0.06391272,105.23,105.16,55.27838377]
[1744173607210,9.5089,105.26,105.16,55.27838377]
[1744173607396,0.070952,105.21,105.14,4.3552]
[1744173607701,9.5164,105.18,105.14,4.3552]
[1744173607898,0.07182568,105.19,105.14,4.3552]
[1744173608206,0.07182568,105.19,105.14,57.7352]
[1744173608504,0.07182568,105.19,105.15,4.4663]
[1744173608701,0.07182568,105.19,105.16,62.0]
[1744173608902,0.07182568,105.19,105.15,4.4663]
[1744173609598,0.07182568,105.19,105.14,67.2541]
[1744173610001,9.58732568,105.19,105.14,67.2541]
[1744173611106,9.58732568,105.19,105.14,9.5189]
[1744173611402,0.07182568,105.19,105.1,9.1473]
[1744173611607,4.65502568,105.19,105.1,9.1473]
[1744173611810,50.53068377,105.17,105.1,18.67]
[1744173612011,53.4928893,105.16,105.1,80.67]
[1744173612404,9.5195,105.14,105.1,80.67]
[1744173612700,53.42,105.16,105.1,80.67]
[1744173612912,0.06842665,105.13,105.1,4.681]
[1744173613513,9.58942665,105.13,105.1,4.681]
[1744173613712,0.06842665,105.13,105.1,4.681]
[1744173614013,0.06842665,105.13,105.12,9.5213]
[1744173614213,58.0232,105.19,105.1,4.681]
[1744173614414,58.0232,105.19,105.11,4.53322665]
[1744173614618,9.5159,105.18,105.14,9.5192]
[1744173614919,58.0232,105.19,105.14,9.5192]
[1744173615216,108.55388377,105.19,105.11,4.4648]
[1744173615410,50.53068377,105.17,105.15,0.06842665]
[1744173615609,50.53068377,105.17,105.1,4.681]
[1744173615809,9.521,105.13,105.1,4.681]
[1744173616013,53.46,105.15,105.1,4.681]
[1744173616618,62.9792,105.15,105.1,14.2033]
[1744173616810,0.07288358,105.14,105.1,4.681]
[1744173618012,0.07288358,105.14,105.13,9.5204]
[1744173618216,53.46,105.18,105.11,4.7349]
[1744173618609,9.5184,105.16,105.11,14.2565]
[1744173618911,9.5184,105.16,105.11,4.7349]
[1744173619116,9.5177,105.16,105.12,9.5205]
[1744173619317,0.06346061,105.15,105.12,0.06898516]
[1744173619618,0.06346061,105.15,105.13,9.5203]
[1744173619814,0.06346061,105.15,105.12,0.06898516]
[1744173620320,0.06346061,105.15,105.13,9.5198]
[1744173620512,0.06346061,105.15,105.12,0.06898516]
[1744173622121,0.06346061,105.15,105.12,9.58978516]
[1744173622414,0.06346061,105.15,105.12,0.06898516]
[1744173622820,9.52,105.14,105.12,0.06898516]
[1744173623819,9.58236061,105.15,105.12,0.06898516]
[1744173624425,9.5197,105.14,105.12,0.06898516]
[1744173625424,0.06346061,105.15,105.12,0.06898516]
[1744173626421,605.57068377,105.21,105.12,53.54898516]
[1744173626626,9.5156,105.19,105.14,9.519]
[1744173627423,53.48,105.21,105.12,104.01068377]
[1744173627724,0.06709477,105.18,105.15,0.06505194]
[1744173627923,0.06709477,105.18,105.16,9.5172]
[1744173628129,62.9936,105.21,105.15,0.06505194]
[1744173628328,53.48,105.21,105.15,0.06505194]
[1744173628628,9.5145,105.2,105.15,9.58285194]
[1744173628832,51.72,105.24,105.16,51.72]
[1744173629032,502.26,105.26,105.16,51.72]
[1744173629033,9.4195,105.27,105.16,56.2061]
[1744173629231,0.07161028,105.21,105.18,50.53068377]
[1744173629431,4.82,105.27,105.19,0.06941686]
[1744173629631,14.3282,105.27,105.22,9.5117]
[1744173629830,102.25068377,105.31,105.2,51.72]
[1744173630229,50.53068377,105.29,105.2,61.2338]
[1744173630430,50.53068377,105.29,105.2,51.72]
[1744173630730,50.53068377,105.25,105.23,0.06062439]
[1744173630927,9.5137,105.21,105.16,56.1861]
[1744173631135,56.52,105.24,105.16,56.1861]
[1744173631324,51.7,105.24,105.16,56.1861]
[1744173631524,51.7,105.24,105.19,9.5143]
[1744173631727,51.7,105.24,105.16,56.1861]
[1744173631922,51.7,105.24,105.17,62.0]
[1744173632234,0.07008055,105.21,105.19,0.07226962]
[1744173633320,9.514,105.2,105.19,0.07226962]
[1744173633726,9.58358055,105.21,105.19,0.07226962]
[1744173634635,9.514,105.2,105.19,0.07226962]
[1744173635232,9.58358055,105.21,105.19,0.07226962]
[1744173635424,0.07008055,105.21,105.19,0.07226962]
[1744173635735,9.514,105.2,105.19,0.07226962]
[1744173636837,9.5169,105.17,105.15,4.7645]
[1744173637132,56.095,105.2,105.15,4.7645]
[1744173637430,13.9092,105.2,105.15,4.7645]
[1744173637643,4.395,105.23,105.15,4.7645]
[1744173637830,4.395,105.23,105.18,9.5153]
[1744173638131,0.06490722,105.2,105.18,0.06819854]
[1744173638335,553.86,105.27,105.21,9.513]
[1744173638631,51.7,105.3,105.21,51.7]
[1744173638835,51.7,105.3,105.22,4.3822]
[1744173639037,9.5072,105.28,105.22,4.3822]
[1744173639538,0.07106522,105.26,105.24,0.06032042]
[1744173639932,0.07106522,105.26,105.25,9.5095]
[1744173640132,0.07106522,105.26,105.24,0.06032042]
[1744173640430,51.77106522,105.26,105.19,9.5142]
[1744173640630,51.7,105.26,105.19,9.5142]
[1744173640830,4.5608,105.25,105.18,56.2229]
[1744173641040,55.09148377,105.25,105.17,4.4987]
[1744173641230,50.53068377,105.23,105.17,4.4987]
[1744173641429,9.5168,105.17,105.13,9.5201]
[1744173641740,9.5168,105.17,105.13,14.0188]
[1744173641927,51.7,105.18,105.14,0.06232824]
[1744173642130,0.0711076,105.16,105.14,0.06232824]
[1744173642326,0.0711076,105.16,105.11,56.3814]
[1744173642633,56.3847,105.21,105.12,64.74583685]
[1744173642833,56.3847,105.21,105.12,51.7]
[1744173643133,56.3847,105.21,105.13,62.0]
[1744173643337,9.5141,105.2,105.16,9.5172]
[1744173643532,56.3847,105.21,105.12,51.7]
[1744173643732,0.07253827,105.19,105.17,0.06292283]
[1744173645239,0.07253827,105.19,105.17,9.57922283]
[1744173645537,0.07253827,105.19,105.17,0.06292283]
[1744173645749,0.07253827,105.19,105.18,9.5158]
[1744173646238,51.7,105.24,105.17,0.06292283]
[1744173646433,9.5119,105.23,105.19,9.5145]
[1744173647231,51.7,105.24,105.17,62.0]
[1744173647432,0.07040328,105.22,105.2,0.06403834]
[1744173647738,9.5139,105.21,105.12,602.67068377]
[1744173647942,0.0718782,105.22,105.2,0.06999677]
[1744173648139,51.7,105.24,105.16,49.98]
[1744173648342,0.06536319,105.22,105.2,0.05998345]
[1744173649038,4.5608,105.25,105.2,0.05998345]
[1744173649236,9.5109,105.24,105.2,9.57358345]
[1744173649735,9.5124,105.22,105.2,0.05998345]
[1744173650240,9.57566094,105.22,105.2,0.05998345]
[1744173653647,9.5131,105.21,105.2,0.05998345]
[1744173655547,0.06326094,105.22,105.2,0.05998345]
[1744173656647,9.5131,105.21,105.2,0.05998345]
[1744173657241,60.04378377,105.21,105.2,0.05998345]
[1744173657546,9.5131,105.21,105.2,0.05998345]
[1744173658850,9.5155,105.19,105.15,9.518]
[1744173659050,59.4955,105.19,105.15,9.518]
[1744173659841,0.07210109,105.18,105.16,0.06505767]
[1744173660252,0.07210109,105.18,105.1,54.6713]
[1744173660452,0.07210109,105.18,105.04,911.0]
[1744173660453,50.53068377,105.15,105.04,50.0]
[1744173660660,50.53068377,105.17,105.04,50.0]
[1744173660661,50.53068377,105.13,105.06,9.526]
[1744173660855,50.53068377,105.13,105.05,4.746]
[1744173661153,9.5265,105.07,104.98,50.53068377]
[1744173661352,50.0,105.08,105.01,4.746]
[1744173661556,0.07090067,105.04,105.02,13.21945751]
[1744173661752,50.0,105.08,105.03,13.2263108]
[1744173661953,50.0,105.08,105.02,4.746]
[1744173662146,50.0,105.08,105.07,9.5258]
[1744173662346,50.53068377,105.11,105.02,4.746]
[1744173662347,50.0,105.11,105.02,4.746]
[1744173662546,50.0,105.11,105.03,13.18975598]
[1744173662744,50.0,105.11,105.04,13.18975598]
[1744173663047,0.05986598,105.08,105.06,0.06111811]
[1744173663357,54.8148,105.14,105.07,13.17520143]
[1744173663558,54.8148,105.14,105.06,62.0]
[1744173663849,105.34548377,105.14,105.06,9.5263]
[1744173664452,0.06747783,105.11,105.09,0.07144752]
[1744173664855,50.0,105.1,105.09,0.07144752]
[1744173666058,50.0,105.1,105.02,50.0]
[1744173666251,9.525,105.08,105.04,9.528]
[1744173666558,50.0,105.1,105.02,50.0]
[1744173666758,50.0,105.1,105.03,13.16766]
[1744173666952,50.0,105.1,105.03,62.0]
[1744173667155,6.275e-05,105.08,105.07,9.5258]
[1744173667353,4.8148,105.14,105.07,50.53068377]
[1744173667553,48.32,105.15,105.08,48.32]
[1744173668245,48.32,105.15,105.1,0.07286776]
[1744173668448,0.07096458,105.13,105.1,0.07286776]
[1744173668757,48.32,105.18,105.1,0.07286776]
[1744173668946,52.9481,105.19,105.16,9.5175]
[1744173669149,62.463,105.19,105.11,98.85068377]
[1744173669452,52.9481,105.19,105.12,4.5459]
[1744173669957,0.06492017,105.17,105.14,9.58416118]
[1744173671151,0.06492017,105.17,105.15,9.518]
[1744173671460,0.06492017,105.17,105.14,0.06476118]
[1744173672163,48.32,105.25,105.15,98.85068377]
[1744173672461,9.5108,105.24,105.2,9.514]
[1744173672656,4.3818,105.24,105.15,48.32]
[1744173672855,50.53068377,105.23,105.12,4.5459]
[1744173673061,50.53068377,105.23,105.14,9.519]
[1744173673258,50.53068377,105.23,105.12,4.5459]
[1744173673460,0.06928297,105.19,105.16,0.06579216]
[1744173673660,0.06928297,105.19,105.17,9.5161]
[1744173673853,9.5129,105.22,105.16,0.06894139]
[1744173674054,4.3818,105.24,105.16,0.06894139]
[1744173674261,4.3818,105.24,105.15,50.53068377]
[1744173674458,4.3818,105.24,105.16,13.13351699]
[1744173674657,4.3818,105.24,105.17,48.32]
[1744173674958,62.3177,105.25,105.17,48.32]
[1744173675263,52.8079,105.25,105.18,62.0]
[1744173675460,0.06107643,105.22,105.2,0.06087945]
[1744173676054,0.06107643,105.22,105.15,502.28]
[1744173676055,48.32,105.21,105.11,48.32]
[1744173676258,4.3662,105.2,105.12,13.14343172]
[1744173676459,4.3662,105.2,105.14,9.5186]
[1744173676859,9.5159,105.18,105.14,9.5186]
[1744173677059,48.32,105.18,105.15,9.5185]
[1744173677365,0.06776179,105.17,105.15,0.06992827]
[1744173679163,48.32,105.24,105.16,48.32]
[1744173679364,48.32,105.24,105.17,59.38711168]
[1744173679563,48.32,105.24,105.18,8.85342598]
[1744173679765,48.32,105.24,105.17,55.24788377]
[1744173679968,48.32,105.24,105.18,8.85367264]
[1744173680264,0.06160648,105.22,105.2,0.06755759]
[1744173680451,48.32,105.27,105.17,4.7172]
[1744173680657,0.0608296,105.22,105.2,0.06867497]
[1744173680856,48.32,105.27,105.19,9.5143]
[1744173681064,0.06434513,105.22,105.2,0.06205394]
[1744173681263,55.05778377,105.26,105.16,4.4787]
[1744173681454,0.06918412,105.22,105.2,0.07273343]
[1744173683769,9.58168412,105.22,105.2,0.07273343]
[1744173684068,0.06918412,105.22,105.2,0.07273343]
[1744173684569,0.06918412,105.22,105.17,4.7332]
[1744173685170,0.06918412,105.22,105.19,9.5149]
[1744173685470,0.06918412,105.22,105.17,4.7332]
[1744173685767,0.06918412,105.22,105.19,0.06947026]
[1744173686365,9.5132,105.21,105.19,0.06947026]
[1744173687466,0.06918412,105.22,105.19,0.06947026]
[1744173687672,9.514,105.2,105.19,0.06947026]
[1744173687867,48.3,105.2,105.13,4.6094]
[1744173688176,9.5162,105.18,105.14,9.519]
[1744173688773,9.5169,105.17,105.13,14.1293]
[1744173688968,0.06816129,105.17,105.15,0.06365658]
[1744173689163,0.06816129,105.17,105.15,50.59434035]
[1744173689370,4.6389,105.25,105.15,108.39434035]
[1744173689569,9.5119,105.23,105.19,9.5141]
[1744173689764,9.2482,105.25,105.16,4.7938]
[1744173690467,0.06646986,105.22,105.19,0.07123493]
[1744173690672,9.57866986,105.22,105.19,0.07123493]
[1744173691175,0.06646986,105.22,105.19,9.58573493]
[1744173691365,0.06646986,105.22,105.19,0.07123493]
[1744173691971,0.06646986,105.22,105.19,9.58543493]
[1744173692363,0.06646986,105.22,105.19,0.07123493]
[1744173693270,0.06646986,105.22,105.2,9.514]
[1744173693578,0.06646986,105.22,105.19,0.07123493]
[1744173695174,0.06646986,105.22,105.19,9.58573493]
[1744173696576,0.06646986,105.22,105.19,0.07123493]
[1744173697076,9.57906986,105.22,105.19,0.07123493]
[1744173697970,0.06646986,105.22,105.19,0.07123493]
[1744173698474,0.06646986,105.22,105.19,50.6019187]
[1744173698675,0.06646986,105.22,105.21,9.5131]
[1744173699575,548.88,105.29,105.21,71.5]
[1744173699771,548.88,105.29,105.22,31.2241848]
[1744173699966,9.5081,105.27,105.21,62.0]
[1744173700475,9.5081,105.27,105.22,9.5118]
[1744173700675,0.06266712,105.25,105.23,0.06439689]
[1744173701173,0.06266712,105.25,105.23,9.57489689]
[1744173701375,0.06266712,105.25,105.23,0.06439689]
[1744173702277,0.06266712,105.25,105.24,9.5104]
[1744173702977,0.06266712,105.25,105.23,0.06439689]
[1744173704177,8.7971,105.32,105.23,0.06439689]
[1744173704380,55.5171,105.32,105.25,50.71354169]
[1744173704582,46.72,105.32,105.29,9.5054]
[1744173704785,46.72,105.35,105.29,50.71354169]
[1744173705184,46.72,105.35,105.26,56.2605]
[1744173705388,0.06696886,105.33,105.31,0.06220852]
[1744173705582,46.7,105.32,105.31,0.06220852]
[1744173706086,56.2032,105.32,105.31,0.06220852]
[1744173706386,0.06696886,105.33,105.31,0.06220852]
[1744173706589,9.5032,105.32,105.31,0.06220852]
[1744173706991,0.06696886,105.33,105.31,0.06220852]
[1744173707289,9.5032,105.32,105.31,0.06220852]
[1744173708394,9.5072,105.28,105.21,112.71354169]
[1744173708690,9.5072,105.28,105.22,13.10584959]
[1744173708889,9.5072,105.28,105.24,9.5098]
[1744173709113,548.5,105.32,105.24,9.5098]
[1744173709485,0.07295809,105.29,105.27,0.06370501]
[1744173709687,9.5093,105.26,105.23,4.3823]
[1744173709993,46.7,105.27,105.2,9.5137]
[1744173710292,46.7,105.26,105.16,4.4606]
[1744173710486,46.7,105.25,105.17,9.5164]
[1744173710686,9.5135,105.21,105.17,9.5164]
[1744173710888,9.5135,105.21,105.2,0.06025711]
[1744173711487,46.76067631,105.22,105.2,0.06025711]